bitfinex-derivatives/quotes_BTCF0:USTF0_20250828
["timestamp","ask_amount","ask_price","bid_price","bid_amount"]
[1756398394156,0.9181699,113000.0,112990.0,0.60305197]
[1756398394651,0.00338,113000.0,112990.0,0.60305197]
[1756398394853,0.0939661,113010.0,113000.0,0.1285099]
[1756398395058,0.9181261,113010.0,113000.0,0.60258417]
[1756398396249,0.9201261,113010.0,113000.0,0.60258417]
[1756398396654,0.83165,113010.0,113000.0,0.60258417]
[1756398396854,0.83265,113010.0,113000.0,0.60258417]
[1756398397054,0.83265,113010.0,113000.0,1.07665844]
[1756398397651,0.82965,113010.0,113000.0,1.07665844]
[1756398399358,0.82754,113010.0,113000.0,1.07665844]
[1756398400158,0.82965,113010.0,113000.0,1.07665844]
[1756398400957,0.82965,113010.0,113000.0,1.07865844]
[1756398401758,0.82754,113010.0,113000.0,1.07865844]
[1756398402156,1.68925,113020.0,113010.0,0.1043621]
[1756398402464,0.00338,113020.0,113010.0,0.62215208]
[1756398402664,0.00549,113030.0,113020.0,0.1284942]
[1756398402865,0.65293,113030.0,113020.0,0.60256847]
[1756398403765,0.7413864,113030.0,113020.0,0.60256847]
[1756398403969,0.9179864,113030.0,113020.0,0.60256847]
[1756398404265,0.00549,113030.0,113020.0,0.60256847]
[1756398404460,0.83053,113030.0,113020.0,0.60256847]
[1756398404765,0.83249,113030.0,113020.0,0.60256847]
[1756398405266,0.82949,113030.0,113020.0,0.60256847]
[1756398406269,0.82949,113030.0,113020.0,0.61154926]
[1756398406763,0.82945,113030.0,113020.0,0.61154926]
[1756398408768,0.82945,113030.0,113020.0,0.60256847]
[1756398413974,0.18847803,113050.0,113040.0,0.1284788]
[1756398414176,1.01231803,113050.0,113040.0,0.57841307]
[1756398414475,1.01442803,113050.0,113040.0,0.57841307]
[1756398416376,1.01642803,113050.0,113040.0,0.57841307]
[1756398416779,1.01942803,113050.0,113040.0,0.57841307]
[1756398417377,1.01942803,113050.0,113040.0,0.0884488]
[1756398417574,1.01942803,113050.0,113040.0,0.47407427]
[1756398417773,0.0939377,113040.0,113030.0,0.1043455]
[1756398417983,0.0939377,113040.0,113030.0,0.57841977]
[1756398418475,0.0939377,113040.0,113030.0,0.1043455]
[1756398418775,0.0939377,113040.0,113030.0,0.57841977]
[1756398418975,0.0939377,113040.0,113030.0,0.60255977]
[1756398419777,0.0949377,113040.0,113030.0,0.60255977]
[1756398419977,0.0969377,113040.0,113030.0,0.60255977]
[1756398421381,0.0969377,113040.0,113030.0,0.1284855]
[1756398421677,0.0969377,113040.0,113030.0,0.60255977]
[1756398424378,0.0969377,113040.0,113030.0,0.1284855]
[1756398424582,0.0969377,113040.0,113030.0,0.60255977]
[1756398424980,0.0939462,113030.0,113020.0,0.03562494]
[1756398425180,0.9176262,113030.0,113020.0,0.1291941]
[1756398425483,0.9176262,113030.0,113020.0,0.04073]
[1756398425781,0.9176262,113030.0,113020.0,0.01625]
[1756398426882,0.9176262,113030.0,113020.0,0.04073]
[1756398427584,0.9176262,113030.0,113020.0,0.01625]
[1756398427782,0.093954,113020.0,113010.0,0.62285128]
[1756398427981,0.00549,113020.0,113010.0,0.62285128]
[1756398428185,0.00338,113020.0,113010.0,0.62285128]
[1756398428384,0.00549,113020.0,113010.0,0.62285128]
[1756398428780,0.83079,113030.0,113020.0,0.0884641]
[1756398428986,0.83417,113030.0,113020.0,0.60326837]
[1756398429176,0.83413,113030.0,113020.0,0.60326837]
[1756398429580,0.83213,113030.0,113020.0,0.60326837]
[1756398429781,0.9175862,113030.0,113020.0,0.60326837]
[1756398430588,0.00849,113030.0,113020.0,0.60326837]
[1756398430785,0.82664,113030.0,113020.0,0.60326837]
[1756398430981,0.9150963,113030.0,113020.0,0.60326837]
[1756398431183,0.9205863,113030.0,113020.0,0.60326837]
[1756398431886,0.9225863,113030.0,113020.0,0.60326837]
[1756398433589,0.9225863,113030.0,113020.0,0.1291941]
[1756398433790,0.9225863,113030.0,113020.0,0.60326837]
[1756398434895,0.9225863,113030.0,113020.0,0.51480427]
[1756398435194,0.0884641,113020.0,113010.0,0.58212098]
[1756398435391,0.0939541,113020.0,113010.0,0.03582571]
[1756398435895,0.0939541,113020.0,113010.0,0.14877761]
[1756398436088,0.9175141,113020.0,113010.0,0.62285188]
[1756398436393,0.9185141,113020.0,113010.0,0.62285188]
[1756398436588,0.0949541,113020.0,113010.0,0.62285188]
[1756398436794,0.9293899,113020.0,113010.0,0.62285188]
[1756398438401,0.9205141,113020.0,113010.0,0.62285188]
[1756398439203,0.9205141,113020.0,113010.0,0.53437998]
[1756398440598,0.92920717,113020.0,113010.0,0.53437998]
[1756398440794,0.9205141,113020.0,113010.0,0.62285178]
[1756398441197,0.82652,113020.0,113010.0,0.87285178]
[1756398442103,0.918364,113020.0,113010.0,0.87285178]
[1756398442304,0.920474,113020.0,113010.0,0.39877751]
[1756398442497,0.920474,113020.0,113010.0,0.87285178]
[1756398443000,0.920474,113020.0,113010.0,0.87285178]
[1756398444199,0.918364,113020.0,113010.0,0.87285178]
[1756398444601,0.920474,113020.0,113010.0,0.87285178]
[1756398445201,0.920474,113020.0,113010.0,0.94369858]
[1756398447202,0.920434,113020.0,113010.0,0.94369858]
[1756398447501,0.918324,113020.0,113010.0,0.94369858]
[1756398447702,0.920434,113020.0,113010.0,0.94369858]
[1756398448505,0.920434,113020.0,113010.0,0.46962431]
[1756398448707,0.920434,113020.0,113010.0,0.94369858]
[1756398449003,0.920434,113020.0,113010.0,0.62285188]
[1756398451807,0.83197,113020.0,113010.0,0.62285188]
[1756398452005,0.8264,113020.0,113010.0,0.62285188]
[1756398453406,0.918204,113020.0,113010.0,0.62285188]
[1756398455009,0.920274,113020.0,113010.0,0.62285188]
[1756398456209,0.918164,113020.0,113010.0,0.62285188]
[1756398456410,0.920274,113020.0,113010.0,0.62285188]
[1756398457811,0.00849,113020.0,113010.0,0.62285188]
[1756398458008,0.65566,113020.0,113010.0,0.62285188]
[1756398458206,0.003,113020.0,113010.0,0.94427898]
[1756398458912,0.003,113020.0,113010.0,1.08427898]
[1756398459116,0.003,113020.0,113010.0,1.34887898]
[1756398460311,0.00211,113040.0,113010.0,1.08427898]
[1756398460517,0.46946,113040.0,113030.0,1.07655474]
[1756398461017,0.46608,113040.0,113030.0,1.07655474]
[1756398461317,0.46608,113040.0,113030.0,0.1284062]
[1756398461318,0.5600184,113040.0,113030.0,0.1284062]
[1756398461616,0.5610184,113040.0,113030.0,0.60248047]
[1756398461817,0.5640184,113040.0,113030.0,0.60248047]
[1756398462311,0.5600184,113040.0,113030.0,0.60248047]
[1756398463316,0.47157,113040.0,113030.0,0.60248047]
[1756398464720,0.00549,113040.0,113030.0,0.60248047]
[1756398465019,0.8265,113040.0,113030.0,0.60248047]
[1756398465420,0.82646,113040.0,113030.0,0.61149601]
[1756398465719,0.00338,113040.0,113030.0,0.61149601]
[1756398466020,0.82646,113040.0,113030.0,0.61149601]
[1756398467919,0.02005351,113050.0,113040.0,0.1120784]
[1756398468120,0.84647351,113050.0,113040.0,1.07654694]
[1756398469022,0.84747351,113050.0,113040.0,1.07654694]
[1756398470424,0.84847351,113050.0,113040.0,1.07654694]
[1756398471520,0.84847351,113050.0,113040.0,0.60247267]
[1756398472425,0.02543351,113050.0,113040.0,0.60247267]
[1756398472626,0.84835351,113050.0,113040.0,0.60247267]
[1756398473022,0.02543351,113050.0,113040.0,0.60247267]
[1756398473226,0.84831351,113050.0,113040.0,0.60247267]
[1756398473617,0.84831351,113050.0,113040.0,1.07654694]
[1756398475631,0.02543351,113050.0,113040.0,1.07654694]
[1756398475826,0.84827351,113050.0,113040.0,1.07654694]
[1756398476628,0.84819351,113050.0,113040.0,1.07654694]
[1756398478028,0.00749,113050.0,113040.0,1.07654694]
[1756398478231,0.82472,113050.0,113040.0,1.07654694]
[1756398479129,0.82683,113050.0,113040.0,1.07654694]
[1756398481935,0.82472,113050.0,113040.0,1.07654694]
[1756398482732,0.82472,113050.0,113040.0,1.21654694]
[1756398483535,2.084857,113090.0,113080.0,0.0884174]
[1756398483736,2.9958266,113090.0,113080.0,0.56249167]
[1756398484236,3.00658826,113090.0,113080.0,0.56249167]
[1756398484436,2.91817866,113090.0,113080.0,0.56249167]
[1756398484638,2.92117866,113090.0,113080.0,0.56249167]
[1756398485842,3.02427866,113090.0,113080.0,0.57891167]
[1756398486040,2.20171866,113090.0,113080.0,0.57891167]
[1756398486247,3.09491048,113090.0,113080.0,0.57891167]
[1756398486542,2.86309255,113090.0,113080.0,0.60252167]
[1756398487538,2.04065255,113090.0,113080.0,0.60252167]
[1756398487739,2.86305255,113090.0,113080.0,0.60252167]
[1756398488443,2.04065255,113090.0,113080.0,0.60252167]
[1756398488631,2.86301255,113090.0,113080.0,0.60252167]
[1756398489642,2.54230073,113090.0,113080.0,0.60252167]
[1756398489846,2.53360907,113090.0,113080.0,0.60252167]
[1756398490344,0.02868907,113090.0,113080.0,0.74252167]
[1756398490640,0.0883751,113140.0,113080.0,0.74252167]
[1756398490641,0.16491895,113160.0,113140.0,0.01642]
[1756398490939,0.08925954,113160.0,113150.0,0.56243687]
[1756398491146,0.08925954,113160.0,113150.0,0.60246687]
[1756398491346,0.66369954,113160.0,113150.0,0.60246687]
[1756398491747,0.66769954,113160.0,113150.0,0.60246687]
[1756398492050,0.91769954,113160.0,113150.0,0.60246687]
[1756398492545,0.84417895,113160.0,113150.0,1.21654114]
[1756398492742,0.84417895,113160.0,113150.0,0.60246687]
[1756398492944,0.84617895,113160.0,113150.0,0.60246687]
[1756398493742,0.84617895,113160.0,113150.0,0.74246687]
[1756398493943,0.84217895,113160.0,113150.0,0.60346687]
[1756398494443,0.84017895,113160.0,113150.0,0.60346687]
[1756398494645,0.84117895,113160.0,113150.0,0.60346687]
[1756398495338,0.84117895,113160.0,113150.0,0.74346687]
[1756398497249,0.84117895,113160.0,113150.0,0.60346687]
[1756398498048,0.84117895,113160.0,113150.0,0.57985687]
[1756398498249,0.84117895,113160.0,113150.0,0.60346687]
[1756398502443,0.84117895,113160.0,113150.0,1.07754114]
[1756398502639,0.84073895,113160.0,113150.0,1.21754114]
[1756398503248,0.84073895,113160.0,113150.0,0.74346687]
[1756398508952,0.84073895,113160.0,113150.0,0.60346687]
[1756398510652,0.82272,113160.0,113150.0,1.21754114]
[1756398513260,0.82272,113160.0,113150.0,1.07754114]
[1756398513461,0.82272,113160.0,113150.0,1.21754114]
[1756398515659,0.82272,113160.0,113150.0,1.09701205]
[1756398516066,0.82272,113160.0,113150.0,1.23701205]
[1756398517363,0.82272,113160.0,113150.0,1.09701205]
[1756398518361,0.82272,113160.0,113150.0,0.62293778]
[1756398523570,0.82272,113160.0,113150.0,0.76293778]
[1756398523770,0.82272,113160.0,113150.0,1.23701205]
[1756398525570,0.82272,113160.0,113150.0,0.76293778]
[1756398525868,0.82272,113160.0,113150.0,0.62293778]
[1756398527372,0.82272,113160.0,113150.0,1.09701205]
[1756398529870,0.82272,113160.0,113150.0,0.06050091]
[1756398530068,0.9110745,113160.0,113150.0,0.001]
[1756398530270,0.9110745,113160.0,113150.0,0.56343657]
[1756398530470,0.9110745,113160.0,113150.0,0.57922657]
[1756398530670,0.9110745,113160.0,113150.0,0.60239657]
[1756398530971,0.001,113160.0,113150.0,0.60239657]
[1756398531172,0.001,113160.0,113150.0,1.07647084]
[1756398531374,0.48452,113160.0,113150.0,1.07647084]
[1756398533175,0.48452,113160.0,113150.0,0.60239657]
[1756398533372,0.8228745,113160.0,113150.0,0.60239657]
[1756398533575,0.5728745,113160.0,113150.0,0.57922657]
[1756398534178,0.48452,113160.0,113150.0,0.60239657]
[1756398534473,0.5745253,113160.0,113150.0,0.1283223]
[1756398534772,0.4861708,113160.0,113150.0,0.60239657]
[1756398535179,0.4869962,113160.0,113150.0,0.60239657]
[1756398536177,0.5753507,113160.0,113150.0,0.60239657]
[1756398536775,0.5728745,113160.0,113150.0,0.1283223]
[1756398536975,0.58448484,113160.0,113150.0,0.60239657]
[1756398537176,0.58448484,113160.0,113150.0,0.1283223]
[1756398537376,0.83448484,113160.0,113150.0,0.47507427]
[1756398537576,0.83448484,113160.0,113150.0,0.49086427]
[1756398537880,0.83448484,113160.0,113150.0,0.47507427]
[1756398538178,0.83448484,113160.0,113150.0,0.49086427]
[1756398538780,0.83448484,113160.0,113150.0,0.47507427]
[1756398539491,0.83448484,113160.0,113150.0,0.001]
[1756398539687,0.83448484,113160.0,113150.0,0.47507427]
[1756398539887,0.83448484,113160.0,113150.0,0.001]
[1756398540084,0.83448484,113160.0,113150.0,0.49086427]
[1756398540385,0.83448484,113160.0,113150.0,0.51542427]
[1756398540685,1.30855911,113160.0,113150.0,0.001]
[1756398541088,0.83448484,113160.0,113150.0,0.001]
[1756398541283,0.35096484,113160.0,113150.0,0.001]
[1756398541483,0.92356484,113160.0,113150.0,0.001]
[1756398543287,1.39763911,113160.0,113150.0,0.001]
[1756398543487,1.79453911,113160.0,113150.0,0.001]
[1756398543790,1.64763911,113160.0,113150.0,0.001]
[1756398543990,2.12186319,113160.0,113150.0,0.001]
[1756398544180,1.64778892,113160.0,113150.0,0.001]
[1756398544583,0.35111465,113160.0,113150.0,0.001]
[1756398544793,1.64878892,113160.0,113150.0,0.001]
[1756398544989,0.82518892,113160.0,113150.0,0.001]
[1756398545294,1.64961397,113160.0,113150.0,0.001]
[1756398545689,1.1755397,113160.0,113150.0,0.001]
[1756398545886,1.64961397,113160.0,113150.0,0.001]
[1756398546091,1.64993643,113160.0,113150.0,0.001]
[1756398548201,1.17586216,113160.0,113150.0,0.001]
[1756398548498,1.64993643,113160.0,113150.0,0.001]
[1756398550500,1.17586216,113160.0,113150.0,0.001]
[1756398550702,1.64993643,113160.0,113150.0,0.001]
[1756398553305,1.65038568,113160.0,113150.0,0.001]
[1756398554203,1.63710877,113160.0,113150.0,0.001]
[1756398554403,1.79773493,113160.0,113150.0,0.001]
[1756398554799,1.79805375,113160.0,113150.0,0.001]
[1756398557196,0.50029948,113160.0,113150.0,0.01727]
[1756398557406,1.79717375,113160.0,113150.0,0.01727]
[1756398557706,1.79717375,113160.0,113150.0,0.001]
[1756398558099,0.97437375,113160.0,113150.0,0.001]
[1756398558404,1.79681375,113160.0,113150.0,0.01727]
[1756398558702,1.79681375,113160.0,113150.0,0.001]
[1756398559005,1.79681375,113160.0,113150.0,0.01727]
[1756398559305,1.79681375,113160.0,113150.0,0.001]
[1756398561204,1.79768939,113160.0,113150.0,0.001]
[1756398562208,1.79803107,113160.0,113150.0,0.001]
[1756398562503,1.79803107,113160.0,113150.0,1e-07]
[1756398562504,2.27210534,113160.0,113150.0,1e-07]
[1756398565811,2.27364439,113160.0,113150.0,1e-07]
[1756398567212,1.45120439,113160.0,113150.0,1e-07]
[1756398567412,0.72713012,113160.0,113150.0,0.0162701]
[1756398567611,1.55013012,113160.0,113150.0,0.0162701]
[1756398568113,1.55077012,113160.0,113150.0,0.0408301]
[1756398570011,0.25305585,113160.0,113150.0,0.0408301]
[1756398570304,1.54911107,113160.0,113150.0,1e-07]
[1756398571110,1.0750368,113160.0,113150.0,1e-07]
[1756398571311,1.54911107,113160.0,113150.0,1e-07]
[1756398572614,2.02318534,113160.0,113150.0,1e-07]
[1756398574311,1.0750368,113160.0,113150.0,1e-07]
[1756398574518,1.54911107,113160.0,113150.0,1e-07]
[1756398575515,0.2515168,113160.0,113150.0,0.0402401]
[1756398575713,1.54911107,113160.0,113150.0,0.0402401]
[1756398576015,0.1046168,113160.0,113150.0,0.0402401]
[1756398576211,0.1046168,113160.0,113150.0,0.2902401]
[1756398576212,0.9298168,113160.0,113150.0,0.2902401]
[1756398578320,1.40389107,113160.0,113150.0,0.2902401]
[1756398580816,0.9298168,113160.0,113150.0,0.2902401]
[1756398581016,1.40389107,113160.0,113150.0,0.2902401]
[1756398585218,3.08541107,113160.0,113150.0,0.2902401]
[1756398585424,1.7861368,113160.0,113150.0,0.0402401]
[1756398585628,2.6100168,113160.0,113150.0,0.0402401]
[1756398586924,3.08409107,113160.0,113150.0,0.0402401]
[1756398587127,3.08409107,113160.0,113150.0,0.0155501]
[1756398587532,3.08409107,113160.0,113150.0,0.0402401]
[1756398589430,3.08409107,113160.0,113150.0,1e-07]
[1756398589922,3.08409107,113160.0,113150.0,0.0246901]
[1756398590129,2.6100168,113160.0,113150.0,0.0402401]
[1756398590319,3.08409107,113160.0,113150.0,0.0402401]
[1756398590520,3.08409107,113160.0,113150.0,0.0155501]
[1756398591523,3.08409107,113160.0,113150.0,0.0402401]
[1756398592126,3.08409107,113160.0,113150.0,0.0155501]
[1756398592329,2.6100168,113160.0,113150.0,0.0402401]
[1756398592530,3.08409107,113160.0,113150.0,0.0155501]
[1756398593023,3.08393107,113160.0,113150.0,0.0155501]
[1756398593221,3.08393107,113160.0,113150.0,1e-07]
[1756398593626,3.80800534,113160.0,113150.0,1e-07]
[1756398594325,3.95490534,113160.0,113100.0,0.05959635]
[1756398594533,0.10610044,113110.0,113100.0,0.53367062]
[1756398594725,0.92978044,113110.0,113100.0,0.53367062]
[1756398595227,0.93878169,113110.0,113100.0,0.53367062]
[1756398595430,0.95404399,113110.0,113100.0,0.53367062]
[1756398595930,0.95404399,113110.0,113100.0,0.53967062]
[1756398596734,0.95404399,113110.0,113100.0,0.54367062]
[1756398597432,0.95404399,113110.0,113100.0,0.53767062]
[1756398597632,0.95404399,113110.0,113100.0,0.53867062]
[1756398598134,0.95404399,113110.0,113100.0,0.53467062]
[1756398599633,1.42811826,113110.0,113100.0,0.04124]
[1756398599934,3.10967826,113110.0,113100.0,0.04124]
[1756398600136,2.63560399,113110.0,113100.0,0.04124]
[1756398600434,3.10967826,113110.0,113100.0,0.01655]
[1756398600730,3.10967826,113110.0,113100.0,0.001]
[1756398600925,3.10967826,113110.0,113100.0,0.01701]
[1756398601124,3.11051826,113110.0,113100.0,0.0406]
[1756398601326,2.63748399,113110.0,113100.0,0.76467427]
[1756398601728,1.81292399,113110.0,113100.0,0.76467427]
[1756398601932,2.63852399,113110.0,113100.0,0.76467427]
[1756398602134,2.63852399,113110.0,113100.0,0.2906]
[1756398602330,2.55013069,113110.0,113100.0,0.76467427]
[1756398602636,2.54128944,113110.0,113100.0,0.85307807]
[1756398603232,2.62968544,113110.0,113100.0,0.85307807]
[1756398603430,2.62968544,113110.0,113100.0,0.0406]
[1756398603632,2.62868544,113110.0,113100.0,0.51467427]
[1756398604133,2.54176944,113110.0,113100.0,0.85307807]
[1756398604331,2.53976944,113110.0,113100.0,0.85507807]
[1756398604534,2.62816544,113110.0,113100.0,0.85507807]
[1756398604733,2.53976944,113110.0,113100.0,0.85507807]
[1756398604935,2.53976944,113110.0,113100.0,0.85407807]
[1756398605434,0.00796944,113110.0,113100.0,0.99407807]
[1756398605738,0.1042255,113130.0,113120.0,0.1289881]
[1756398606037,0.84172,113130.0,113120.0,0.60306237]
[1756398606228,0.9301003,113130.0,113120.0,0.60306237]
[1756398606424,0.9539403,113130.0,113120.0,0.1289881]
[1756398606727,0.9539403,113130.0,113120.0,0.60306237]
[1756398607428,0.9549403,113130.0,113120.0,0.60306237]
[1756398607829,0.9549403,113130.0,113120.0,0.51467427]
[1756398608538,0.9539403,113130.0,113120.0,0.51467427]
[1756398608738,0.9539403,113130.0,113120.0,0.60306247]
[1756398608938,0.9539403,113130.0,113120.0,0.60406247]
[1756398609439,0.1280603,113130.0,113120.0,0.60406247]
[1756398609631,0.9543403,113130.0,113120.0,0.51567427]
[1756398610135,0.9543403,113130.0,113120.0,0.51467427]
[1756398610343,0.9543403,113130.0,113120.0,0.51567427]
[1756398611939,0.9543403,113130.0,113120.0,0.51467427]
[1756398612237,0.9543403,113130.0,113120.0,0.51567427]
[1756398613437,0.9553403,113130.0,113120.0,0.01701]
[1756398613838,1.67941457,113130.0,113120.0,0.001]
[1756398614135,0.088396,113110.0,113100.0,0.0406]
[1756398614335,0.954396,113110.0,113100.0,0.01601]
[1756398614735,1.42847027,113110.0,113100.0,0.01601]
[1756398614936,0.954396,113110.0,113100.0,0.01601]
[1756398615137,0.0884039,113100.0,113090.0,0.53431884]
[1756398615340,0.1280839,113100.0,113090.0,0.53431884]
[1756398615840,0.03968,113100.0,113090.0,0.62273054]
[1756398616140,0.03968,113100.0,113090.0,0.53431884]
[1756398616344,0.1280839,113100.0,113090.0,0.06024457]
[1756398616644,0.1280839,113100.0,113090.0,0.53431884]
[1756398617344,0.1280839,113100.0,113090.0,0.62373054]
[1756398617642,0.1280839,113100.0,113090.0,0.06124457]
[1756398618144,2.53375817,113100.0,113090.0,0.001]
[1756398618337,0.1042517,113090.0,113080.0,0.0406]
[1756398618531,0.9547717,113090.0,113080.0,0.0406]
[1756398619544,0.9547717,113090.0,113080.0,0.01601]
[1756398619545,1.43768538,113090.0,113080.0,0.01601]
[1756398619744,0.1280995,113080.0,113070.0,0.06055315]
[1756398621443,0.1290995,113080.0,113070.0,0.06055315]
[1756398621631,0.01684,113080.0,113070.0,0.62305472]
[1756398621832,0.01684,113080.0,113070.0,0.87305472]
[1756398621833,0.001,113080.0,113070.0,0.87305472]
[1756398622037,0.82688,113080.0,113070.0,0.87305472]
[1756398622641,0.82688,113080.0,113070.0,1.34712899]
[1756398622842,0.82688,113080.0,113070.0,0.87305472]
[1756398623043,0.1290965,113090.0,113080.0,0.1290195]
[1756398623243,0.9543365,113090.0,113080.0,0.51467427]
[1756398623841,0.9543365,113090.0,113070.0,0.52061742]
[1756398624149,0.1280995,113080.0,113070.0,0.53662742]
[1756398624946,0.1280995,113080.0,113070.0,0.53462742]
[1756398625149,0.1280995,113080.0,113070.0,0.53562742]
[1756398625451,0.1280995,113080.0,113070.0,0.61620229]
[1756398626051,0.1280995,113080.0,113070.0,0.06155315]
[1756398626253,0.1280995,113080.0,113070.0,0.06255315]
[1756398626655,0.1280995,113080.0,113070.0,0.06155315]
[1756398628545,0.1280995,113080.0,113070.0,0.61620229]
[1756398628941,0.1280995,113080.0,113070.0,0.70462959]
[1756398629855,0.1280995,113080.0,113070.0,0.06155315]
[1756398630052,0.1280995,113080.0,113070.0,0.70462959]
[1756398631254,0.1280995,113080.0,113070.0,0.14998045]
[1756398631455,0.1280995,113080.0,113070.0,0.70462959]
[1756398631656,0.1280995,113080.0,113070.0,0.61620229]
[1756398632959,0.1042595,113080.0,113070.0,0.70462959]
[1756398633153,0.9314195,113080.0,113070.0,0.70462959]
[1756398633453,0.1132122,113090.0,113080.0,0.1271395]
[1756398633454,0.090527,113090.0,113080.0,0.1271395]
[1756398633754,0.955557,113090.0,113080.0,0.59336914]
[1756398633959,0.955557,113090.0,113080.0,0.68178864]
[1756398634555,0.955557,113090.0,113080.0,0.59336914]
[1756398634756,0.955557,113090.0,113080.0,0.03872]
[1756398635350,0.955557,113090.0,113080.0,0.01589]
[1756398635551,0.956557,113090.0,113080.0,0.03872]
[1756398635952,0.957557,113090.0,113080.0,0.03872]
[1756398636151,0.957557,113090.0,113080.0,0.59336914]
[1756398636355,0.955447,113090.0,113080.0,0.59336914]
[1756398636956,0.953447,113090.0,113080.0,0.03972]
[1756398638962,0.953447,113090.0,113080.0,0.01689]
[1756398640963,0.953447,113090.0,113080.0,0.001]
[1756398641256,1.203447,113090.0,113080.0,0.001]
[1756398641462,1.204447,113090.0,113080.0,0.001]
[1756398642265,1.90599614,113090.0,113080.0,0.001]
[1756398642566,0.1262651,113060.0,113050.0,0.59336914]
[1756398642763,1.1822551,113060.0,113030.0,0.57747914]
[1756398642957,0.1262879,113040.0,113030.0,0.59336914]
[1756398643158,0.86695,113040.0,113030.0,0.68182774]
[1756398643356,0.84426,113040.0,113030.0,0.68182774]
[1756398643661,0.111138,113050.0,113030.0,0.65899774]
[1756398643862,0.126278,113050.0,113040.0,0.59336914]
[1756398644057,0.41903788,113050.0,113040.0,0.59336914]
[1756398644861,0.41903788,113050.0,113040.0,0.01589]
[1756398645167,0.1262804,113040.0,113030.0,0.59536914]
[1756398645357,0.1262804,113040.0,113030.0,0.59636914]
[1756398645860,0.1262804,113040.0,113030.0,0.59536914]
[1756398646061,0.1262804,113040.0,113030.0,0.59436914]
[1756398646358,0.1262804,113040.0,113030.0,0.03972]
[1756398646660,0.1262804,113040.0,113030.0,0.59436914]
[1756398646857,0.1262804,113040.0,113030.0,0.59336914]
[1756398647259,0.1262804,113040.0,113030.0,0.03872]
[1756398647560,0.1262804,113040.0,113030.0,0.59336914]
[1756398648462,0.1262804,113040.0,113030.0,0.03872]
[1756398649667,0.1272804,113040.0,113030.0,0.03872]
[1756398650167,0.1272804,113040.0,113020.0,0.03872]
[1756398650168,0.1262882,113030.0,113020.0,0.03872]
[1756398650465,0.9550882,113030.0,113020.0,0.03872]
[1756398650664,0.9550882,113030.0,113020.0,0.59336914]
[1756398650967,0.0884661,113020.0,113010.0,0.02283]
[1756398651161,0.1263166,113000.0,112990.0,0.03872]
[1756398651360,0.9555566,113000.0,112990.0,0.03872]
[1756398652166,0.0884895,112990.0,112980.0,0.02283]
[1756398652467,0.13536818,112990.0,112980.0,0.03872]
[1756398652668,0.1223195,112990.0,112980.0,0.03872]
[1756398652872,0.1223195,112990.0,112980.0,0.51276276]
[1756398653065,0.1193195,112990.0,112980.0,0.03872]
[1756398653568,0.1193195,112990.0,112980.0,0.59426367]
[1756398653969,0.1193195,112990.0,112980.0,0.59826367]
[1756398654170,0.1193195,112990.0,112980.0,0.04272]
[1756398654466,0.1193195,112990.0,112980.0,0.59826367]
[1756398654668,0.1193195,112990.0,112980.0,0.60126367]
[1756398654966,0.1193195,112990.0,112980.0,0.04572]
[1756398655469,0.1193195,112990.0,112980.0,0.60126367]
[1756398657974,0.1193195,112990.0,112980.0,0.04572]
[1756398659173,0.1193195,112990.0,112980.0,0.60126367]
[1756398659867,0.0966295,112990.0,112980.0,0.60126367]
[1756398660273,1.69874,113000.0,112990.0,0.1279497]
[1756398660473,2.51236,113000.0,112990.0,0.68349337]
[1756398660664,2.6169819,113000.0,112990.0,0.68349337]
[1756398660861,2.5285,113000.0,112990.0,0.68349337]
[1756398661270,1.6826,113000.0,112990.0,0.93349337]
[1756398661474,2.51236,113000.0,112990.0,0.93349337]
[1756398661675,1.6826,113000.0,112990.0,1.07349337]
[1756398661877,0.1289488,113020.0,113010.0,0.0884741]
[1756398662176,0.96811967,113020.0,113010.0,0.68347777]
[1756398662375,0.96811967,113020.0,113010.0,0.59500367]
[1756398662578,0.96811967,113020.0,113010.0,0.03946]
[1756398662770,0.1289541,113010.0,113000.0,0.03946]
[1756398663876,0.1289541,113010.0,113000.0,0.59600367]
[1756398664266,0.92764147,113020.0,113000.0,0.68448517]
[1756398664579,0.01614,113020.0,113010.0,0.68347737]
[1756398664772,0.84678,113020.0,113010.0,0.68347737]
[1756398664976,0.01614,113030.0,113020.0,0.1279259]
[1756398665176,0.919218,113030.0,113020.0,0.59500367]
[1756398665477,0.959698,113030.0,113020.0,0.59500367]
[1756398665777,0.1289459,113020.0,113010.0,0.59500367]
[1756398666075,0.1289459,113020.0,113010.0,0.1279337]
[1756398666677,0.1046059,113020.0,113010.0,0.68347737]
[1756398667376,0.9455623,113030.0,113020.0,0.02312]
[1756398667575,0.9621423,113030.0,113020.0,0.03946]
[1756398668077,0.87368,113030.0,113020.0,0.1279259]
[1756398668282,0.84934,113030.0,113020.0,0.68346957]
[1756398668574,0.937798,113030.0,113020.0,0.68346957]
[1756398668781,0.84934,113030.0,113020.0,0.68346957]
[1756398669082,0.8322,113030.0,113020.0,0.93346957]
[1756398669582,0.8342,113030.0,113020.0,0.93346957]
[1756398669776,0.922658,113030.0,113020.0,0.93346957]
[1756398670283,0.8342,113030.0,113020.0,0.93346957]
[1756398670980,0.8338,113030.0,113020.0,1.07346957]
[1756398671280,0.8338,113030.0,113020.0,0.93346957]
[1756398671485,0.8338,113030.0,113020.0,1.07346957]
[1756398671686,0.131938,113030.0,113020.0,0.93346957]
[1756398671886,0.130938,113030.0,113020.0,0.1279259]
[1756398672085,0.130938,113030.0,113020.0,0.68346957]
[1756398672282,0.128938,113030.0,113020.0,0.68346957]
[1756398672787,0.128938,113030.0,113020.0,0.68546957]
[1756398673388,0.128938,113030.0,113020.0,0.68446957]
[1756398673590,0.128938,113030.0,113020.0,0.68346957]
[1756398675689,0.128938,113030.0,113020.0,0.1279259]
[1756398675889,0.04048,113030.0,113020.0,0.68346957]
[1756398676090,0.8712,113030.0,113020.0,0.68346957]
[1756398676393,0.84686,113030.0,113020.0,0.68346957]
[1756398676689,1.8120953,113040.0,113030.0,0.127918]
[1756398676891,2.51416,113040.0,113030.0,0.68346167]
[1756398678499,2.51616,113040.0,113030.0,0.68346167]
[1756398678698,2.6046102,113040.0,113030.0,0.68346167]
[1756398679000,2.51416,113040.0,113030.0,0.68346167]
[1756398679202,2.51516,113040.0,113030.0,0.68346167]
[1756398679796,2.51516,113040.0,113030.0,0.69312324]
[1756398679992,2.6187502,113040.0,113030.0,0.68546167]
[1756398680200,2.6430902,113040.0,113030.0,0.68546167]
[1756398681104,2.8930902,113040.0,113030.0,0.002]
[1756398681297,2.8930902,113040.0,113030.0,0.001]
[1756398681604,2.8951702,113040.0,113030.0,0.001]
[1756398682104,2.8951702,113040.0,113030.0,0.01634]